bitfinex-derivatives/quotes_SOLF0:USTF0_20251216
["timestamp","ask_amount","ask_price","bid_price","bid_amount"]
[1765853627516,3.13,126.79,126.76,2.62680454]
[1765853627719,3.13,126.79,126.77,3.08]
[1765853627720,0.05947572,126.79,126.77,3.08]
[1765853628612,0.05947572,126.79,126.78,2.62680454]
[1765853629418,3.18947572,126.79,126.76,2.67868738]
[1765853630418,3.18947572,126.79,126.76,0.05188284]
[1765853630618,3.13,126.78,126.76,0.05188284]
[1765853631922,10.2306,126.78,126.76,0.05188284]
[1765853632226,3.13,126.78,126.76,0.05188284]
[1765853633018,3.13,126.77,126.76,0.05188284]
[1765853633609,3.13,126.75,126.71,12.81070454]
[1765853634219,3.13,126.75,126.72,3.08]
[1765853634616,3.18493979,126.75,126.72,3.13999862]
[1765853635520,3.13,126.74,126.72,0.05999862]
[1765853636710,3.18493979,126.75,126.72,3.13999862]
[1765853638227,3.18493979,126.75,126.72,0.05999862]
[1765853640839,3.18493979,126.75,126.72,3.13999862]
[1765853641324,0.05493979,126.75,126.72,3.13999862]
[1765853643525,0.05493979,126.75,126.72,10.24359862]
[1765853643724,0.05493979,126.75,126.73,3.26]
[1765853644528,0.05493979,126.75,126.73,10.3631]
[1765853644824,10.1497,126.8,126.74,3.26]
[1765853645933,0.05987617,126.78,126.76,0.05133927]
[1765853646131,3.10987617,126.78,126.76,0.05133927]
[1765853646630,3.05,126.77,126.76,0.05133927]
[1765853650722,0.05987617,126.78,126.76,3.31133927]
[1765853652922,0.05987617,126.78,126.77,3.26]
[1765853653121,3.10987617,126.78,126.76,7.15263927]
[1765853653320,0.05987617,126.78,126.76,10.41263927]
[1765853653528,0.05987617,126.78,126.77,3.26]
[1765853661329,0.05987617,126.78,126.76,3.31133927]
[1765853661736,3.10987617,126.78,126.76,0.05133927]
[1765853664339,10.21037617,126.78,126.76,0.05133927]
[1765853664540,3.05,126.77,126.76,0.05133927]
[1765853665849,4.63,126.77,126.76,0.00133927]
[1765853666849,10.69559591,126.77,126.76,0.00133927]
[1765853670745,77.75559591,126.77,126.76,0.00133927]
[1765853672455,3.23,126.74,126.68,3.12]
[1765853673254,3.28169204,126.72,126.7,0.0545757]
[1765853673954,10.38559204,126.72,126.7,0.0545757]
[1765853674949,3.28169204,126.72,126.7,0.0545757]
[1765853675154,3.37169204,126.72,126.7,0.0545757]
[1765853676155,10.47559204,126.72,126.7,0.0545757]
[1765853676347,3.32,126.71,126.7,0.0545757]
[1765853679359,10.47559204,126.72,126.7,0.0545757]
[1765853679550,0.05169204,126.72,126.7,3.4045757]
[1765853679854,3.37169204,126.72,126.7,0.0545757]
[1765853680856,10.47559204,126.72,126.7,0.0545757]
[1765853681254,3.32,126.71,126.7,0.0545757]
[1765853684856,3.32,126.69,126.65,3.35]
[1765853685462,10.4261,126.68,126.65,3.35]
[1765853686061,10.47971977,126.68,126.65,3.4080789]
[1765853686259,10.4267,126.67,126.65,0.0580789]
[1765853686449,3.32,126.66,126.65,0.0580789]
[1765853687459,3.37361977,126.68,126.65,3.4080789]
[1765853688163,10.47971977,126.68,126.65,0.0580789]
[1765853688361,3.32,126.67,126.65,0.0580789]
[1765853688767,10.4267,126.67,126.65,0.0580789]
[1765853688967,3.32,126.66,126.65,0.0580789]
[1765853698467,3.32,126.67,126.65,0.0580789]
[1765853699063,3.32,126.67,126.65,3.4080789]
[1765853700371,3.32,126.66,126.65,0.0580789]
[1765853700767,0.05361977,126.68,126.65,3.4080789]
[1765853700768,3.37361977,126.68,126.65,3.4080789]
[1765853700961,0.05361977,126.68,126.65,3.4080789]
[1765853701163,3.37361977,126.68,126.65,3.4080789]
[1765853701674,3.32,126.73,126.67,3.35]
[1765853701864,3.32,126.73,126.7,3.35]
[1765853702661,10.48229333,126.73,126.7,3.35]
[1765853702857,10.48229333,126.73,126.7,0.05791949]
[1765853702858,3.07,126.72,126.7,0.05791949]
[1765853703873,10.1741,126.72,126.7,0.05791949]
[1765853704075,3.07,126.71,126.7,0.05791949]
[1765853704976,0.05869333,126.73,126.7,3.14791949]
[1765853705275,3.12869333,126.73,126.7,0.05791949]
[1765853705574,10.23209333,126.73,126.7,0.05791949]
[1765853705873,3.07,126.72,126.7,0.05791949]
[1765853706872,3.07,126.71,126.7,0.05791949]
[1765853709977,5.70178335,126.71,126.7,0.05791949]
[1765853710176,3.07,126.71,126.7,0.05791949]
[1765853713570,5.70178335,126.71,126.7,0.05791949]
[1765853714784,3.07,126.71,126.7,0.05791949]
[1765853718080,5.70178335,126.71,126.7,0.05791949]
[1765853719574,3.07,126.71,126.7,0.05791949]
[1765853720278,3.12869333,126.73,126.7,3.14791949]
[1765853722984,0.05869333,126.73,126.72,3.09]
[1765853723395,3.12869333,126.73,126.7,0.05791949]
[1765853723591,3.12869333,126.73,126.7,3.14791949]
[1765853723891,3.12869333,126.73,126.7,0.05791949]
[1765853724281,3.12869333,126.73,126.7,3.14791949]
[1765853724478,10.23199333,126.73,126.7,3.14791949]
[1765853724777,3.07,126.72,126.7,0.05791949]
[1765853726091,0.05869333,126.73,126.7,3.14791949]
[1765853726787,3.12869333,126.73,126.7,3.14791949]
[1765853727887,0.05869333,126.73,126.71,3.09]
[1765853730482,3.12869333,126.73,126.7,3.14791949]
[1765853730678,3.12869333,126.73,126.7,0.05791949]
[1765853731888,10.23209333,126.73,126.7,0.05791949]
[1765853732084,3.32,126.72,126.7,0.05791949]
[1765853736593,3.37869333,126.73,126.7,3.29791949]
[1765853737191,0.05869333,126.73,126.71,3.24]
[1765853737398,0.05869333,126.73,126.71,5.86972322]
[1765853739001,0.05869333,126.73,126.72,3.24]
[1765853742704,3.37869333,126.73,126.71,3.24]
[1765853743403,0.05869333,126.73,126.71,3.24]
[1765853743789,0.05869333,126.73,126.72,3.24]
[1765853745204,3.37869333,126.73,126.7,3.29791949]
[1765853745701,3.37869333,126.73,126.71,3.24]
[1765853745910,3.37869333,126.73,126.7,10.40281949]
[1765853748608,3.37869333,126.73,126.71,3.24]
[1765853749105,3.37869333,126.73,126.7,3.29791949]
[1765853756511,0.05869333,126.73,126.7,3.29791949]
[1765853756711,0.05869333,126.73,126.7,10.40271949]
[1765853757016,0.05869333,126.73,126.71,3.24]
[1765853757512,3.37869333,126.73,126.71,3.24]
[1765853757712,3.37869333,126.73,126.7,0.05791949]
[1765853758013,3.32,126.72,126.7,3.29791949]
[1765853758409,3.32,126.72,126.71,3.24]
[1765853758608,3.32,126.72,126.7,0.05791949]
[1765853758914,3.32,126.72,126.7,3.29791949]
[1765853759913,3.37869333,126.73,126.7,3.29791949]
[1765853761612,0.05869333,126.73,126.71,3.24]
[1765853762012,3.37869333,126.73,126.7,3.29791949]
[1765853762204,0.05869333,126.73,126.7,3.29791949]
[1765853763110,0.05869333,126.73,126.7,70.39791949]
[1765853763420,0.05869333,126.73,126.71,3.34]
[1765853764008,0.05869333,126.73,126.71,10.4443]
[1765853764206,0.05869333,126.73,126.72,3.34]
[1765853764614,3.32869333,126.73,126.71,3.34]
[1765853764907,0.05869333,126.73,126.71,3.34]
[1765853767124,3.32869333,126.73,126.71,3.34]
[1765853768923,3.32869333,126.73,126.66,151.5535]
[1765853768924,3.27,126.69,126.66,41.0]
[1765853769222,3.27,126.67,126.62,3.34]
[1765853770018,0.05235431,126.66,126.64,3.34]
[1765853770219,3.32235431,126.66,126.63,3.39442464]
[1765853770726,3.32235431,126.66,126.63,0.05442464]
[1765853771524,3.32235431,126.66,126.63,3.39442464]
[1765853772324,3.32235431,126.66,126.63,0.05442464]
[1765853774623,10.42985431,126.66,126.63,0.05442464]
[1765853774830,3.27,126.65,126.63,0.05442464]
[1765853778321,10.378,126.65,126.63,0.05442464]
[1765853778718,3.27,126.64,126.63,0.05442464]
[1765853785033,3.27,126.61,126.57,3.34]
[1765853785239,3.27,126.61,126.56,3.34]
[1765853785427,3.27,126.63,126.56,3.34]
[1765853785624,110.5504,126.67,126.6,3.34]
[1765853785625,3.27,126.67,126.6,3.34]
[1765853786129,3.27,126.64,126.62,0.05898923]
[1765853788038,10.3784,126.64,126.62,0.05898923]
[1765853788332,3.27,126.63,126.62,0.05898923]
[1765853791435,3.27,126.64,126.62,3.39898923]
[1765853791631,0.05844327,126.65,126.62,3.39898923]
[1765853792031,10.48624327,126.65,126.62,3.39898923]
[1765853792231,3.13,126.64,126.62,0.05898923]
[1765853792932,3.13,126.64,126.62,3.11898923]
[1765853793236,3.13,126.64,126.62,0.05898923]
[1765853793441,3.13,126.63,126.62,0.05898923]
[1765853800335,10.2384,126.64,126.62,0.05898923]
[1765853802134,3.13,126.63,126.62,0.05898923]
[1765853807640,0.05844327,126.65,126.62,3.11898923]
[1765853808250,0.05844327,126.65,126.64,3.06]
[1765853809051,0.00217764,126.65,126.64,3.06]
[1765853816857,3.13,126.7,126.67,3.06]
[1765853817756,3.18602075,126.7,126.67,3.10983621]
[1765853819357,3.13,126.69,126.67,0.04983621]
[1765853822353,3.08,126.68,126.67,0.04983621]
[1765853825070,3.13602075,126.7,126.67,3.20983621]
[1765853825256,3.13602075,126.7,126.67,0.04983621]
[1765853826358,3.08,126.68,126.67,0.04983621]
[1765853827052,3.08,126.67,126.63,12.8999725]
[1765853827362,3.08,126.67,126.63,5.7915725]
[1765853827566,3.08,126.67,126.64,3.16]
[1765853827863,3.08,126.68,126.65,5.7915725]
[1765853828061,3.1300453,126.68,126.65,5.84380562]
[1765853832468,3.1300453,126.68,126.66,3.16]
[1765853832662,3.1300453,126.68,126.65,5.84380562]
[1765853833273,3.1300453,126.68,126.65,0.05223312]
[1765853833972,10.2362453,126.68,126.65,0.05223312]
[1765853834172,3.08,126.67,126.65,0.05223312]
[1765853837477,7.1562453,126.68,126.65,3.21223312]
[1765853837478,0.0500453,126.68,126.65,3.21223312]
[1765853837664,0.0500453,126.68,126.66,3.16]
[1765853838071,0.0500453,126.68,126.67,5.7915725]
[1765853839376,0.0500453,126.68,126.66,3.16]
[1765853841073,3.1300453,126.68,126.66,3.16]
[1765853841370,3.1300453,126.68,126.65,5.84380562]
[1765853842179,3.1300453,126.68,126.65,0.05223312]
[1765853843466,3.08,126.67,126.65,0.05223312]
[1765853844170,3.08,126.66,126.65,0.05223312]
[1765853854382,11.92807001,126.66,126.65,0.05223312]
[1765853854679,11.92999022,126.66,126.65,0.05223312]
[1765853859786,11.92999022,126.66,126.65,0.00223312]
[1765853862397,3.37,126.65,126.64,3.07]
[1765853862892,3.37,126.65,126.64,4.65]
[1765853863891,0.05342539,126.66,126.65,3.07]
[1765853864091,0.05342539,126.66,126.65,5.70349271]
[1765853865797,0.05342539,126.66,126.65,3.07]
[1765853866000,0.05342539,126.66,126.65,5.70349271]
[1765853869610,3.42342539,126.66,126.64,3.07]
[1765853871003,3.42342539,126.66,126.63,3.12836777]
[1765853871199,3.37,126.64,126.63,0.05836777]
[1765853872212,3.37,126.65,126.63,0.05836777]
[1765853872709,0.05342539,126.66,126.63,3.12836777]
[1765853872911,3.42342539,126.66,126.63,3.12836777]
[1765853873213,3.42342539,126.66,126.64,3.07]
[1765853875218,3.42342539,126.66,126.63,2.69186048]
[1765853875610,3.42342539,126.66,126.63,0.05836777]
[1765853876110,3.42342539,126.66,126.63,3.12836777]
[1765853876917,3.42342539,126.66,126.63,0.05836777]
[1765853877309,3.37,126.65,126.63,0.05836777]
[1765853885826,10.4778,126.65,126.63,0.05836777]
[1765853886023,3.36,126.65,126.63,3.30836777]
[1765853886621,3.41342539,126.66,126.63,3.30836777]
[1765853887032,0.05342539,126.66,126.63,3.30836777]
[1765853887229,0.05342539,126.66,126.64,3.25]
[1765853888915,0.05342539,126.66,126.64,10.3582]
[1765853889115,0.05342539,126.66,126.65,3.25]
[1765853891422,0.05342539,126.66,126.64,3.25]
[1765853891626,3.41342539,126.66,126.64,3.25]
[1765853892024,0.05342539,126.66,126.64,3.25]
[1765853893132,3.41342539,126.66,126.64,3.25]
[1765853893534,0.05342539,126.66,126.64,10.3582]
[1765853893832,0.05342539,126.66,126.65,3.25]
[1765853894526,3.36,126.64,126.63,0.05836777]
[1765853895624,3.41342539,126.66,126.63,3.30836777]
[1765853896433,3.36,126.65,126.63,0.05836777]
[1765853897533,3.36,126.64,126.63,0.05836777]
[1765853911646,3.36,126.65,126.63,3.30836777]
[1765853912141,3.36,126.65,126.63,0.05836777]
[1765853912342,3.44342539,126.66,126.63,3.16836777]
[1765853912742,3.39,126.64,126.63,0.05836777]
[1765853913247,0.05342539,126.66,126.64,3.11]
[1765853914938,0.05342539,126.66,126.65,3.11]
[1765853918946,3.44342539,126.66,126.64,3.11]
[1765853919145,3.44342539,126.66,126.63,3.16836777]
[1765853923743,3.44342539,126.66,126.63,0.05836777]
[1765853926057,3.39,126.65,126.63,0.05836777]
[1765853926558,3.44342539,126.66,126.63,3.16836777]
[1765853927760,0.05342539,126.66,126.63,3.16836777]
[1765853927949,0.05342539,126.66,126.65,3.11]
[1765853928144,0.05342539,126.66,126.64,3.11]
[1765853928859,3.44342539,126.66,126.63,0.05836777]
[1765853936958,3.39,126.64,126.63,0.05836777]
[1765853944571,3.30342539,126.66,126.63,3.12836777]
[1765853948869,3.30342539,126.66,126.64,2.63280994]
[1765853949077,3.30342539,126.66,126.64,5.70280994]
[1765853950477,0.05342539,126.66,126.65,3.07]
[1765853951975,3.25,126.7,126.67,3.07]
[1765853952363,3.25,126.7,126.66,5.70280994]
[1765853952777,3.30330446,126.69,126.67,0.05403695]
[1765853959679,3.30330446,126.69,126.67,3.12403695]
[1765853959866,0.05330446,126.69,126.67,3.12403695]
[1765853960380,3.30330446,126.69,126.67,3.12403695]
[1765853961976,3.30330446,126.69,126.67,5.75684689]
[1765853963781,0.05330446,126.69,126.68,3.07]
[1765853966378,3.30330446,126.69,126.67,5.75684689]
[1765853966578,3.30330446,126.69,126.67,0.05403695]
[1765853967785,3.25,126.68,126.67,0.05403695]
[1765853970384,3.30330446,126.69,126.67,3.12403695]
[1765853972172,0.05330446,126.69,126.68,5.92280994]
[1765853974180,3.12,126.74,126.7,3.29]
[1765853974386,3.12,126.74,126.72,3.29]
[1765853974797,3.12,126.74,126.71,5.92280994]
[1765853975172,3.17833181,126.74,126.71,5.97434002]
[1765853975383,3.17833181,126.74,126.72,3.29]
[1765853978787,3.17833181,126.74,126.71,5.97434002]
[1765853979190,3.17833181,126.74,126.71,0.05153008]
[1765853979395,3.12,126.72,126.71,0.05153008]
[1765853983896,5.75280994,126.72,126.71,0.00153008]
[1765853988396,11.8931433,126.72,126.71,0.00153008]
[1765853989289,5.75280994,126.72,126.71,0.00153008]
[1765853990200,5.75133558,126.72,126.71,0.00153008]
[1765853990500,11.89433761,126.72,126.71,0.00153008]
[1765853991100,3.12,126.72,126.71,0.00153008]
[1765853997100,3.12,126.7,126.65,3.29]
[1765853997308,3.12,126.69,126.65,3.29]
[1765853997603,3.12,126.71,126.67,3.29]
[1765853998198,0.06036161,126.7,126.68,3.33997369]
[1765854000403,0.06036161,126.7,126.68,5.97130927]
[1765854000598,0.06036161,126.7,126.69,3.29]
[1765854001897,0.06036161,126.7,126.69,5.92133558]
[1765854002705,3.12,126.75,126.7,3.16]
[1765854002896,3.37,126.76,126.73,3.16]
[1765854003205,3.37,126.76,126.72,5.79133558]
[1765854003406,3.37,126.76,126.72,3.16]
[1765854003808,3.37,126.74,126.73,0.05472981]
[1765854006206,0.05772717,126.75,126.73,3.21472981]
[1765854008514,0.05772717,126.75,126.73,10.31782981]
[1765854008815,0.05772717,126.75,126.74,3.16]
[1765854009714,3.37,126.81,126.76,3.16]
[1765854010303,3.37,126.81,126.77,3.16]
[1765854010704,0.05912277,126.8,126.78,3.21250085]
[1765854023435,0.05912277,126.8,126.78,7.32016857]
[1765854023728,0.05912277,126.8,126.79,3.16]
[1765854025624,3.42912277,126.8,126.78,3.21250085]
[1765854025819,3.42912277,126.8,126.78,0.05250085]
[1765854027026,3.37,126.79,126.78,0.05250085]
[1765854032234,0.05912277,126.8,126.78,3.14250085]
[1765854033229,3.28,126.76,126.73,3.09]
[1765854033432,3.28,126.76,126.71,3.09]
[1765854034238,0.05055761,126.75,126.72,0.05118453]
[1765854034437,3.33055761,126.75,126.72,3.14118453]
[1765854038031,3.33055761,126.75,126.72,0.05118453]
[1765854038236,3.28,126.73,126.72,0.05118453]
[1765854039439,3.33055761,126.75,126.72,3.14118453]
[1765854041647,10.43285761,126.75,126.72,3.14118453]
[1765854041843,3.28,126.74,126.72,0.05118453]
[1765854042043,7.38766772,126.74,126.72,0.05118453]
[1765854042351,3.28,126.73,126.72,0.05118453]
[1765854044648,3.28,126.71,126.66,3.09]
[1765854044947,3.28,126.7,126.66,3.09]
[1765854045750,3.33831766,126.69,126.67,0.05284831]
[1765854053961,10.44391766,126.69,126.67,0.05284831]
[1765854054353,3.28,126.68,126.67,0.05284831]
[1765854060867,3.28,126.68,126.67,0.00284831]
[1765854062668,3.3,126.65,126.62,3.37]
[1765854063073,3.3,126.62,126.58,3.37]
[1765854063368,3.3,126.62,126.59,3.37]
[1765854063569,0.05807359,126.62,126.6,3.37]
[1765854064065,0.05807359,126.62,126.61,2.63447361]
[1765854064968,0.05807359,126.62,126.61,6.00447361]
[1765854065171,3.3,126.68,126.62,3.37]
[1765854065371,3.3,126.68,126.65,3.37]
[1765854065674,3.3,126.67,126.65,3.37]
[1765854066381,3.35299492,126.67,126.65,0.05735367]
[1765854066569,10.45979492,126.67,126.65,0.05735367]
[1765854066770,3.3,126.65,126.59,6.00447361]
[1765854066972,3.3,126.65,126.62,3.37]
[1765854067776,0.05669879,126.65,126.63,6.00447361]
[1765854068164,0.05669879,126.65,126.63,3.37]
[1765854068374,3.35669879,126.65,126.63,3.37]
[1765854068768,3.35669879,126.65,126.63,6.00447361]
[1765854070069,3.35669879,126.65,126.63,2.63447361]
[1765854072573,3.35669879,126.65,126.63,6.00447361]
[1765854073772,3.35669879,126.65,126.62,0.0541105]
[1765854074879,10.46449879,126.65,126.62,0.0541105]
[1765854075079,3.3,126.64,126.62,0.0541105]
[1765854075479,3.3,126.63,126.62,0.0541105]
[1765854098205,0.05669879,126.65,126.63,3.35]
[1765854099001,0.05669879,126.65,126.64,5.98447361]
[1765854099199,2.63447361,126.72,126.65,3.35]
[1765854099403,2.63447361,126.72,126.67,3.35]
[1765854099999,2.63447361,126.7,126.64,5.98447361]
[1765854100201,0.05037127,126.68,126.66,0.05453822]
[1765854101300,0.05037127,126.68,126.66,3.40453822]
[1765854102606,0.05037127,126.68,126.67,5.98447361]
[1765854102802,0.05037127,126.68,126.67,2.63447361]
[1765854103001,0.05037127,126.68,126.67,3.35]
[1765854103401,0.05037127,126.68,126.66,2.68901183]
[1765854103402,0.05037127,126.68,126.66,6.03901183]
[1765854103705,0.05037127,126.68,126.67,3.35]
[1765854106115,0.05037127,126.68,126.66,3.40453822]
[1765854107012,0.05037127,126.68,126.67,5.98447361]
[1765854109112,3.16,126.74,126.68,3.35]
[1765854109307,3.16,126.75,126.71,3.35]
[1765854109903,110.4486,126.79,126.75,3.35]
[1765854109904,3.16,126.77,126.75,3.35]
[1765854110309,3.21594412,126.77,126.75,3.40967488]
[1765854111714,0.05594412,126.77,126.75,3.40967488]
[1765854111919,0.05594412,126.77,126.76,5.98447361]
[1765854112423,2.63447361,126.83,126.76,5.98447361]
[1765854112424,3.16,126.83,126.78,3.35]
[1765854112616,3.16,126.83,126.79,3.35]
[1765854113217,2.63447361,126.85,126.78,2.63447361]
[1765854113218,3.16,126.85,126.81,3.35]
[1765854113405,3.16,126.84,126.82,0.06057793]
[1765854113606,3.21927835,126.84,126.82,0.06057793]
[1765854114311,3.16,126.83,126.82,0.06057793]
[1765854121634,3.21927835,126.84,126.82,0.06057793]
[1765854122337,0.05927835,126.84,126.83,3.24]
[1765854122733,3.24,126.9,126.84,3.24]
[1765854123039,3.24,126.9,126.87,3.24]
[1765854123236,3.24,126.9,126.86,2.62518495]
[1765854123447,3.24,126.9,126.85,7.0962]
[1765854123448,3.24,126.9,126.85,10.3362]
[1765854123631,0.05277365,126.89,126.86,0.05473571]
[1765854123831,0.05277365,126.89,126.86,3.29473571]
[1765854124139,3.29277365,126.89,126.86,3.29473571]
[1765854124733,3.29277365,126.89,126.86,0.05473571]
[1765854126940,10.38737365,126.89,126.86,0.05473571]
[1765854127238,3.24,126.87,126.79,3.24]
[1765854127443,3.24,126.85,126.79,3.24]
[1765854127740,3.24,126.85,126.78,7.1001]
[1765854127936,3.24,126.85,126.78,10.3401]
[1765854128142,3.24,126.82,126.8,0.0599251]
[1765854128943,0.05585575,126.83,126.81,3.24]
[1765854130033,3.29585575,126.83,126.8,3.2999251]
[1765854131136,113.70755575,126.83,126.8,0.0599251]
[1765854131336,3.24,126.8,126.73,3.24]
[1765854132147,3.24,126.78,126.73,3.24]
[1765854132337,3.24,126.76,126.74,0.05351718]
[1765854140242,10.3419,126.76,126.74,0.05351718]
[1765854140439,3.24,126.75,126.74,0.05351718]
[1765854142454,0.05320059,126.77,126.74,3.29351718]
[1765854142455,3.29320059,126.77,126.74,3.29351718]
[1765854143854,3.29320059,126.77,126.74,0.05351718]
[1765854144952,10.39430059,126.77,126.74,0.05351718]
[1765854146154,10.39430059,126.77,126.74,3.29351718]
[1765854146656,3.29320059,126.77,126.74,3.29351718]
[1765854148258,3.29320059,126.77,126.74,0.05351718]
[1765854148560,3.24,126.76,126.74,0.05351718]
[1765854149055,10.3417,126.76,126.74,0.05351718]
[1765854149357,3.24,126.75,126.74,0.05351718]
[1765854150859,3.24,126.71,126.68,3.24]
[1765854151246,3.24,126.7,126.66,3.24]
[1765854151855,3.24,126.7,126.67,3.39593475]
[1765854151856,0.05415167,126.69,126.67,3.39593475]
[1765854155763,0.05415167,126.69,126.68,3.32]
[1765854160855,3.13415167,126.69,126.67,0.05593475]
[1765854161661,3.08,126.68,126.67,0.05593475]
[1765854163862,10.186,126.68,126.67,0.05593475]
[1765854165657,3.08,126.66,126.6,7.43101361]
[1765854165862,3.08,126.66,126.6,14.54141361]
[1765854166062,3.08,126.66,126.61,3.32]
[1765854166569,0.06070959,126.65,126.62,0.05003039]
[1765854166772,0.06070959,126.65,126.63,3.32]
[1765854167763,3.14070959,126.65,126.62,0.05003039]
[1765854175865,7.1084,126.64,126.62,0.05003039]
[1765854176067,3.08,126.63,126.62,0.05003039]
[1765854176769,10.1884,126.64,126.62,3.37003039]
[1765854176975,3.08,126.63,126.62,0.05003039]
[1765854177477,3.14070959,126.65,126.62,3.37003039]
[1765854178476,3.08,126.64,126.62,3.37003039]
[1765854178773,0.06070959,126.65,126.62,3.37003039]
[1765854178976,3.14070959,126.65,126.62,3.37003039]
[1765854179772,10.24850959,126.65,126.62,0.05003039]
[1765854179978,3.14070959,126.65,126.62,0.05003039]
[1765854180379,3.08,126.63,126.62,0.05003039]
[1765854185465,5.71487992,126.63,126.62,0.05003039]
[1765854185879,3.08,126.63,126.62,0.05003039]
[1765854186079,5.71487992,126.63,126.62,0.05003039]
[1765854186776,3.33,126.56,126.52,3.14]
[1765854186985,221.2033,126.61,126.54,3.14]
[1765854186986,5.96487992,126.58,126.54,3.14]
[1765854187187,3.33,126.58,126.54,3.14]
[1765854187679,3.33,126.58,126.55,3.14]
[1765854187881,0.04976455,126.57,126.55,3.19943448]
[1765854189290,0.04976455,126.57,126.55,10.31263448]
[1765854189581,0.04976455,126.57,126.56,3.14]
[1765854191579,0.04976455,126.57,126.55,0.05943448]
[1765854191580,3.37976455,126.57,126.55,0.05943448]
[1765854193073,0.04976455,126.57,126.55,3.19943448]
[1765854194780,3.33,126.63,126.57,3.14]
[1765854194980,3.33,126.65,126.6,5.77589419]
[1765854195186,3.33,126.65,126.61,3.14]
[1765854195584,10.4371,126.67,126.63,3.14]
[1765854195786,0.05033081,126.66,126.64,3.19253395]
[1765854197086,3.38033081,126.66,126.64,0.05253395]
[1765854197491,3.33,126.65,126.64,0.05253395]
[1765854199185,0.05033081,126.66,126.64,0.05253395]
[1765854199186,0.05033081,126.66,126.64,3.19253395]
[1765854200592,0.05033081,126.66,126.65,5.77589419]
[1765854201289,0.05033081,126.66,126.65,2.63589419]
[1765854201487,3.38033081,126.66,126.64,0.05253395]
[1765854201691,0.05033081,126.66,126.64,3.19253395]
[1765854203691,0.05033081,126.66,126.64,10.30053395]
[1765854203898,0.05033081,126.66,126.65,5.77589419]
[1765854206299,0.05033081,126.66,126.65,3.14]
[1765854207286,3.38033081,126.66,126.64,0.05253395]
[1765854207799,3.33,126.65,126.64,0.05253395]
[1765854208297,3.33,126.63,126.59,5.77589419]
[1765854209099,10.439,126.63,126.59,5.77589419]
[1765854209402,0.05655553,126.62,126.6,0.05994706]
[1765854210497,3.38655553,126.62,126.6,0.05994706]
[1765854212999,3.38655553,126.62,126.6,3.16994706]
[1765854213708,3.38655553,126.62,126.6,0.05994706]
[1765854214410,0.05655553,126.62,126.6,3.16994706]
[1765854216010,3.35655553,126.62,126.6,3.16994706]
[1765854217012,3.35655553,126.62,126.6,0.05994706]
[1765854217210,3.35655553,126.62,126.6,3.16994706]
[1765854218814,0.05655553,126.62,126.6,3.16994706]
[1765854219505,3.35655553,126.62,126.6,3.16994706]
[1765854221214,0.05655553,126.62,126.6,3.16994706]
[1765854221617,0.05655553,126.62,126.6,10.28014706]
[1765854221810,0.05655553,126.62,126.61,3.11]
[1765854222310,3.3,126.67,126.63,3.11]
[1765854223113,3.3,126.66,126.61,10.2195]
[1765854223414,3.35373102,126.65,126.62,3.16524397]
[1765854224916,0.05373102,126.65,126.62,10.27424397]
[1765854225116,0.05373102,126.65,126.63,3.11]
[1765854227312,0.05373102,126.65,126.63,10.2187]
[1765854227505,0.05373102,126.65,126.64,3.11]
[1765854236123,0.05373102,126.65,126.63,5.74216422]
[1765854238431,3.35373102,126.65,126.63,5.74216422]
[1765854239522,0.05373102,126.65,126.63,5.74216422]
[1765854241431,0.05373102,126.65,126.64,3.11]
[1765854243334,0.00373102,126.65,126.64,3.11]
[1765854243535,0.00373102,126.65,126.64,70.23]
[1765854244829,0.00373102,126.65,126.64,72.86216422]
[1765854245234,0.00373102,126.65,126.64,70.23]
[1765854245622,0.00373102,126.65,126.64,67.12]
[1765854245823,3.36373102,126.65,126.62,0.05524397]
[1765854246526,3.36,126.64,126.62,0.05524397]
[1765854246834,3.36,126.62,126.57,5.99216422]
[1765854247031,3.36,126.61,126.57,5.99216422]
[1765854247235,3.36,126.6,126.56,3.36]
[1765854247439,3.36,126.6,126.55,70.48]
[1765854247642,0.05677378,126.59,126.56,0.06054878]
[1765854247827,3.36,126.58,126.56,0.06054878]